bitfinex-derivatives/quotes_ETHF0:USTF0_20250919
["timestamp","ask_amount","ask_price","bid_price","bid_amount"]
[1758288199543,0.94311182,4526.1,4526.0,1.12072]
[1758288199845,0.94311182,4526.1,4526.0,0.39752]
[1758288200046,1.45660277,4526.1,4526.0,0.39752]
[1758288200340,0.3972,4525.9,4525.6,0.313]
[1758288200536,0.7111,4525.7,4525.6,0.39755]
[1758288200737,1.45666163,4525.7,4525.6,0.39755]
[1758288201938,0.8361,4525.5,4525.4,0.39757]
[1758288202146,1.06811182,4525.5,4525.4,0.39757]
[1758288203047,0.94311182,4525.5,4525.4,1.12077]
[1758288205248,0.94310758,4525.5,4525.4,1.12077]
[1758288205447,0.23200758,4525.5,4525.4,1.12077]
[1758288207443,0.94310758,4525.5,4525.4,0.7232]
[1758288207748,1.06810758,4525.5,4525.4,0.7232]
[1758288208249,1.06810758,4525.5,4525.4,1.12077]
[1758288208644,0.43290758,4525.5,4525.4,1.12077]
[1758288208948,0.72830758,4525.5,4525.4,1.12077]
[1758288215649,0.93280758,4525.5,4525.4,1.12077]
[1758288215856,1.05180758,4525.5,4525.4,0.204]
[1758288216150,1.05180758,4525.5,4525.4,0.60157]
[1758288216351,0.2954,4525.4,4525.2,0.022]
[1758288216553,0.93360758,4525.3,4525.2,0.022]
[1758288216844,0.93360758,4525.3,4525.2,0.41959]
[1758288217045,0.93360758,4525.3,4525.2,0.62289]
[1758288217246,0.93360758,4525.3,4525.2,0.93989]
[1758288218252,1.15560758,4525.3,4525.2,0.93989]
[1758288219554,1.15560758,4525.3,4525.2,0.91789]
[1758288221560,0.43370758,4525.3,4525.2,1.11469]
[1758288221759,0.45400758,4525.3,4525.2,1.11469]
[1758288222057,0.23200758,4525.3,4525.2,1.11469]
[1758288222248,0.8266,4526.0,4525.9,0.79763]
[1758288222454,1.57228153,4526.0,4525.9,1.11463]
[1758288222955,1.66928153,4526.0,4525.9,1.11463]
[1758288225261,1.15565344,4526.0,4525.9,1.11463]
[1758288225460,0.93365344,4526.0,4525.9,1.11463]
[1758288225659,1.15565344,4526.0,4525.9,1.11463]
[1758288225860,0.23205344,4526.0,4525.9,1.11463]
[1758288226067,0.45405344,4526.0,4525.9,1.11463]
[1758288226362,0.74945344,4526.0,4525.9,1.11463]
[1758288226567,0.95115344,4526.0,4525.9,1.11463]
[1758288227063,1.15565344,4526.0,4525.9,1.11463]
[1758288227263,1.15556575,4526.0,4525.9,1.11463]
[1758288227759,1.15556575,4526.0,4525.9,0.7171]
[1758288227963,1.27456575,4526.0,4525.9,0.7171]
[1758288228164,1.78767388,4526.0,4525.9,0.7171]
[1758288228663,1.78767388,4526.0,4525.9,0.4001]
[1758288228866,1.78767388,4526.0,4525.9,0.79763]
[1758288229060,1.27456575,4526.0,4525.9,1.11463]
[1758288229865,1.78771121,4526.0,4525.9,0.7171]
[1758288230259,1.78771121,4526.0,4525.9,1.11463]
[1758288231267,1.78767563,4526.0,4525.9,0.79763]
[1758288231863,1.27456575,4526.0,4525.9,0.79763]
[1758288232263,1.27456575,4526.0,4525.9,0.60083]
[1758288234862,1.27456575,4526.0,4525.9,0.91783]
[1758288236272,1.27456575,4526.0,4525.9,0.5203]
[1758288236965,1.27456575,4526.0,4525.9,0.91783]
[1758288237471,1.0426,4526.0,4525.9,0.91783]
[1758288237674,1.27456734,4526.0,4525.9,0.91783]
[1758288239175,1.15556734,4526.0,4525.9,1.11463]
[1758288240176,0.23196734,4526.0,4525.9,1.11463]
[1758288240470,0.45396734,4526.0,4525.9,1.11463]
[1758288240866,0.66516734,4526.0,4525.9,1.11463]
[1758288241068,0.97646734,4526.0,4525.9,1.11463]
[1758288241368,0.23196734,4526.0,4525.9,1.11463]
[1758288241568,35.9294,4527.0,4525.9,1.11463]
[1758288241569,0.7159,4526.8,4526.7,0.91566]
[1758288241772,1.68277424,4526.8,4526.7,1.12486]
[1758288241982,1.16981132,4526.8,4526.7,1.12486]
[1758288243471,0.23191132,4526.8,4526.7,1.12486]
[1758288244683,3.2078,4527.4,4527.3,0.3974]
[1758288244885,4.06613395,4527.4,4527.3,1.1248]
[1758288245185,3.84413395,4527.4,4527.3,1.1248]
[1758288245482,4.37743395,4527.4,4527.3,1.1248]
[1758288247293,4.3771965,4527.4,4527.3,1.1248]
[1758288248382,4.1551965,4527.4,4527.3,1.1248]
[1758288248583,4.3771965,4527.4,4527.3,1.1248]
[1758288250691,4.1551965,4527.4,4527.3,1.1248]
[1758288250892,4.3771965,4527.4,4527.3,1.1248]
[1758288251389,4.1551965,4527.4,4527.3,1.1248]
[1758288251691,4.3771965,4527.4,4527.3,1.1248]
[1758288253290,4.1457,4527.4,4527.3,1.1248]
[1758288254086,0.9379,4527.4,4527.3,1.1248]
[1758288254287,0.7159,4527.4,4527.3,1.1248]
[1758288254488,0.9379,4527.4,4527.3,1.1248]
[1758288255588,0.7159,4527.4,4527.3,1.1248]
[1758288255892,0.7445,4527.4,4527.3,1.1248]
[1758288256087,0.7159,4527.9,4527.8,1.12476]
[1758288256394,0.9379,4527.9,4527.8,1.12476]
[1758288264394,1.16801526,4527.9,4527.8,1.12476]
[1758288266400,0.45211526,4527.9,4527.8,1.12476]
[1758288266695,0.5225,4528.2,4528.1,1.12473]
[1758288266888,1.1681106,4528.2,4528.1,1.12473]
[1758288272703,1.1681106,4528.2,4528.1,0.81993]
[1758288272998,1.1681106,4528.2,4528.1,0.60653]
[1758288279202,1.1681106,4528.2,4528.1,1.13433]
[1758288279705,0.9461106,4528.2,4528.1,1.13433]
[1758288279907,1.1681106,4528.2,4528.1,1.13433]
[1758288280905,0.9461106,4528.2,4528.1,1.13433]
[1758288281101,0.2302106,4528.2,4528.1,1.13433]
[1758288281302,0.2302106,4528.2,4528.1,5.13433]
[1758288281508,3.2078,4528.4,4528.3,1.12932]
[1758288281707,3.43896972,4528.4,4528.3,1.12932]
[1758288284006,3.2078,4528.4,4528.3,1.12932]
[1758288284401,0.2989,4528.4,4528.3,1.12932]
[1758288284598,0.5104,4528.4,4528.3,1.12932]
[1758288284806,0.7324,4528.4,4528.3,1.12932]
[1758288289216,0.222,4528.4,4528.3,1.12932]
[1758288290308,0.2989,4528.6,4528.5,0.3973]
[1758288290512,3.7182,4528.9,4528.8,1.12927]
[1758288290708,4.17133814,4528.9,4528.8,1.12927]
[1758288290906,4.37593814,4528.9,4528.8,1.12927]
[1758288291107,4.15393814,4528.9,4528.8,1.12927]
[1758288291312,4.37593814,4528.9,4528.8,1.12927]
[1758288291914,4.88547953,4528.9,4528.8,1.12927]
[1758288294409,4.66347953,4528.9,4528.8,1.12927]
[1758288294607,4.88547953,4528.9,4528.8,1.12927]
[1758288295007,1.67767953,4528.9,4528.8,1.12927]
[1758288297421,1.16813814,4528.9,4528.8,1.12927]
[1758288298318,1.16813814,4528.9,4528.8,0.60147]
[1758288298520,1.16813814,4528.9,4528.8,0.39727]
[1758288299018,1.16813814,4528.9,4528.8,0.59767]
[1758288299208,1.16813814,4528.9,4528.8,0.90627]
[1758288299719,0.94613814,4528.9,4528.8,0.90627]
[1758288299921,1.16813814,4528.9,4528.8,0.90627]
[1758288300219,0.23113814,4528.9,4528.8,5.11877]
[1758288300516,0.45,4529.4,4529.3,1.11873]
[1758288300716,0.45,4529.4,4529.3,4.54853]
[1758288300912,0.45,4529.4,4529.3,8.54853]
[1758288301117,0.4814,4530.5,4530.4,0.90613]
[1758288301318,0.4814,4530.5,4530.4,1.11863]
[1758288302217,3.2078,4530.9,4530.4,0.7215]
[1758288302419,3.8883,4530.9,4530.8,0.4129]
[1758288302719,0.125,4532.5,4531.4,1.11854]
[1758288302720,0.6805,4531.5,4531.4,1.11854]
[1758288303113,0.1948,4531.5,4531.4,1.11854]
[1758288304217,0.2931,4531.8,4531.7,0.39702]
[1758288304526,0.6805,4531.8,4531.7,1.11852]
[1758288307120,0.3874,4531.8,4531.7,1.11852]
[1758288308329,0.6805,4531.8,4531.7,0.70562]
[1758288308726,0.6805,4531.8,4531.7,0.90602]
[1758288309429,0.6805,4531.8,4531.7,1.11852]
[1758288311119,0.2931,4532.4,4532.0,0.8397]
[1758288311325,0.4879,4532.4,4532.3,0.80987]
[1758288311523,0.6805,4532.4,4532.3,1.11847]
[1758288316635,0.3874,4532.4,4532.3,1.11847]
[1758288317128,0.1948,4532.4,4532.3,1.11847]
[1758288317435,0.1948,4532.6,4532.5,1.23665]
[1758288317733,0.2931,4532.9,4532.8,1.11842]
[1758288317734,0.4879,4532.9,4532.8,1.11842]
[1758288318329,0.1948,4532.9,4532.8,1.11842]
[1758288318634,0.5151,4533.2,4533.1,0.3969]
[1758288318833,0.6805,4533.4,4533.3,0.7215]
[1758288319035,0.90608084,4533.4,4533.3,0.7215]
[1758288319231,0.90608084,4533.4,4533.3,1.11838]
[1758288319536,0.6805,4533.4,4533.3,1.11838]
[1758288320331,0.90607554,4533.4,4533.3,1.11838]
[1758288321840,0.90607554,4533.4,4533.3,0.7215]
[1758288324032,0.6805,4533.4,4533.3,0.7215]
[1758288324530,0.4181,4534.0,4533.8,0.39683]
[1758288324731,1.12829299,4533.9,4533.8,1.11833]
[1758288325130,1.12829299,4533.9,4533.8,0.7215]
[1758288326136,1.63309783,4533.9,4533.8,0.7215]
[1758288327237,1.63309783,4533.9,4533.8,1.11833]
[1758288329531,1.41109783,4533.9,4533.8,1.11833]
[1758288329731,1.63309783,4533.9,4533.8,1.11833]
[1758288330133,1.63309783,4533.9,4533.8,0.90583]
[1758288330536,1.63309783,4533.9,4533.8,1.11073]
[1758288331543,1.33999783,4533.9,4533.8,1.11073]
[1758288332037,1.65529783,4533.9,4533.8,1.11073]
[1758288332639,1.43329783,4533.9,4533.8,1.11073]
[1758288332943,1.65529783,4533.9,4533.8,1.11073]
[1758288334037,1.65529783,4533.9,4533.8,0.90583]
[1758288337049,1.65529783,4533.9,4533.8,0.509]
[1758288337344,1.65529783,4533.9,4533.7,0.022]
[1758288337547,1.44179783,4533.8,4533.7,0.022]
[1758288338034,0.3153,4533.7,4533.6,0.39685]
[1758288338239,1.66379783,4533.7,4533.6,0.39685]
[1758288338746,1.66379783,4533.7,4533.4,0.2947]
[1758288338747,0.8365,4533.5,4533.4,0.39686]
[1758288338937,1.78909783,4533.5,4533.4,0.39686]
[1758288339137,1.78909783,4533.5,4533.4,0.69156]
[1758288339340,1.78909783,4533.5,4533.4,0.90096]
[1758288339846,1.78909783,4533.5,4533.4,0.39686]
[1758288340248,1.78909783,4533.5,4533.4,0.69156]
[1758288341039,1.78909783,4533.5,4533.4,0.39686]
[1758288341548,1.78909783,4533.5,4533.4,0.90096]
[1758288342636,1.66533637,4533.5,4533.4,1.10586]
[1758288344448,1.66533637,4533.5,4533.4,0.5041]
[1758288344648,1.47533637,4533.5,4533.3,0.39688]
[1758288344946,1.44333637,4533.4,4533.3,0.69158]
[1758288345449,1.44333637,4533.4,4533.3,0.90098]
[1758288346743,1.44333637,4533.4,4533.3,1.10588]
[1758288347644,1.44333637,4533.4,4533.2,3.2298]
[1758288347840,0.7112,4533.4,4533.3,0.90098]
[1758288348045,1.44360777,4533.4,4533.3,0.90098]
[1758288348244,1.44360777,4533.4,4533.3,0.709]
[1758288348439,0.7112,4533.3,4533.2,3.5245]
[1758288348644,1.44360777,4533.3,4533.2,3.2298]
[1758288348847,1.44360777,4533.3,4533.2,3.60469]
[1758288349549,1.44360777,4533.3,4533.2,3.89939]
[1758288350752,1.44360777,4533.3,4533.2,4.10879]
[1758288351153,1.44360777,4533.3,4533.2,4.31369]
[1758288352054,0.92590777,4533.3,4533.2,4.31369]
[1758288352255,1.44360777,4533.3,4533.2,4.31369]
[1758288352445,1.44360777,4533.3,4533.2,3.9168]
[1758288352648,1.44360777,4533.3,4533.2,3.7119]
[1758288353150,1.44360777,4533.3,4533.2,4.10879]
[1758288353551,1.44360777,4533.3,4533.2,4.31369]
[1758288354851,1.44360777,4533.3,4533.2,3.9168]
[1758288355051,1.44360777,4533.3,4533.2,4.31369]
[1758288355957,1.44360777,4533.3,4533.2,3.9168]
[1758288356554,1.12830777,4533.3,4533.2,4.31369]
[1758288356744,1.44360777,4533.3,4533.2,4.31369]
[1758288357552,0.42116964,4533.3,4533.2,4.31369]
[1758288358055,0.73906964,4533.3,4533.2,4.31369]
[1758288358658,0.22766964,4533.3,4533.2,4.31369]
[1758288358960,0.4352,4533.5,4533.4,0.7209]
[1758288359158,1.17375849,4533.5,4533.4,0.7209]
[1758288359559,1.47325849,4533.5,4533.4,0.7209]
[1758288360061,1.47325849,4533.5,4533.4,1.11777]
[1758288360260,1.17375849,4533.5,4533.4,0.7209]
[1758288360557,1.68585849,4533.5,4533.4,0.7209]
[1758288361150,1.68585849,4533.5,4533.4,1.11777]
[1758288362163,1.68585849,4533.5,4533.4,0.7209]
[1758288362349,0.2995,4533.4,4532.6,3.2078]
[1758288362552,4.72135849,4533.5,4532.7,0.2085]
[1758288362553,0.7253,4532.8,4532.7,0.2085]
[1758288362753,1.46385849,4532.8,4532.7,0.5154]
[1758288362950,1.46385849,4532.8,4532.5,0.39694]
[1758288363261,0.7253,4532.6,4532.5,0.5154]
[1758288363556,1.46385849,4532.6,4532.5,0.5154]
[1758288363756,1.46385849,4532.6,4532.1,0.39698]
[1758288363962,0.7253,4532.2,4532.1,0.7209]
[1758288364260,0.95313188,4532.2,4532.1,0.5154]
[1758288364763,4.67122351,4532.2,4532.1,0.5154]
[1758288364961,4.67122351,4532.2,4531.9,0.3289]
[1758288365254,0.7253,4532.0,4531.9,0.3289]
[1758288365461,0.95313188,4532.0,4531.9,0.3289]
[1758288365655,1.08033188,4532.0,4531.9,0.3289]
[1758288366654,1.08033188,4532.0,4531.9,0.5374]
[1758288366854,1.08033188,4532.0,4531.9,0.5154]
[1758288367757,1.58981107,4532.0,4531.6,0.3069]
[1758288367956,3.6336,4531.7,4531.0,0.1201]
[1758288368150,0.7253,4531.2,4531.1,0.7209]
[1758288371766,0.2132,4531.2,4531.1,0.7209]
[1758288371961,3.2078,4531.7,4531.6,0.7209]
[1758288372162,3.2078,4532.2,4532.1,0.7209]
[1758288372359,3.4298,4532.2,4532.1,0.7209]
[1758288372863,3.643,4532.2,4532.1,0.7209]
[1758288373966,4.1551,4532.2,4532.1,0.7209]
[1758288376261,3.5073,4532.8,4532.7,0.2085]
[1758288376466,0.2132,4532.8,4532.7,0.7209]
[1758288376662,0.2132,4533.0,4532.9,0.7209]
[1758288376965,0.4352,4533.0,4532.9,0.7209]
[1758288377568,0.2132,4533.0,4532.9,0.7209]
[1758288377862,0.4352,4533.0,4532.9,0.7209]
[1758288378058,0.2132,4533.0,4532.9,0.7209]
[1758288378257,3.2078,4533.3,4533.2,0.39689]
[1758288378465,3.4298,4533.3,4533.2,1.11779]
[1758288378662,0.222,4533.3,4533.2,1.11779]
[1758288379673,0.7253,4533.6,4533.5,1.11776]
[1758288379970,0.9473,4533.6,4533.5,1.11776]
[1758288380365,0.7253,4533.6,4533.5,1.23786]
[1758288380565,0.9473,4533.6,4533.5,1.23786]
[1758288380965,0.7253,4533.6,4533.5,1.23786]
[1758288381164,0.9473,4533.6,4533.5,1.11776]
[1758288382470,0.7253,4533.6,4533.5,1.11776]
[1758288382672,0.9473,4533.6,4533.5,1.11776]
[1758288384068,0.9519823,4533.6,4533.5,1.11776]
[1758288384368,1.1739823,4533.6,4533.5,1.23786]
[1758288384564,1.17398225,4533.6,4533.5,1.11776]
[1758288384767,0.9473,4533.6,4533.5,1.11776]
[1758288390674,1.17398343,4533.6,4533.5,1.11776]
[1758288391974,1.17398343,4533.6,4533.5,1.24146]
[1758288392776,1.17398301,4533.6,4533.5,1.24146]
[1758288393077,0.6478,4533.6,4533.5,1.24146]
[1758288393271,0.4352,4533.6,4533.5,1.24146]
[1758288393679,3.7024,4534.4,4534.3,0.5]
[1758288393873,4.86477868,4534.4,4534.3,0.5]
[1758288394072,4.64277868,4534.4,4534.3,0.5]
[1758288394379,4.86477868,4534.4,4534.3,0.7075]
[1758288394976,4.64277868,4534.4,4534.3,1.10429]
[1758288395173,3.94407868,4534.4,4534.3,1.10429]
[1758288395377,3.2078,4534.4,4534.3,1.10429]
[1758288396077,0.222,4534.5,4534.3,1.10429]
[1758288396377,0.222,4534.5,4534.4,0.7075]
[1758288396581,0.4279,4534.5,4534.4,0.7075]
[1758288397884,0.9207,4534.5,4534.4,0.7075]
[1758288399168,1.14729039,4534.5,4534.4,0.7075]
[1758288399580,1.78397885,4534.5,4534.2,0.022]
[1758288399782,0.6987,4534.3,4534.2,0.022]
[1758288400078,0.92529039,4534.3,4534.2,0.022]
[1758288400982,0.92529039,4534.3,4534.2,0.522]
[1758288401376,1.43538218,4534.3,4534.2,0.522]
[1758288401983,1.14729039,4534.3,4534.2,0.522]
[1758288402374,1.14729039,4534.3,4534.2,0.5]
[1758288404079,1.14729039,4534.3,4534.2,0.7075]
[1758288404280,1.65778174,4534.3,4534.2,0.7075]
[1758288405283,1.65778174,4534.3,4534.2,1.1043]
[1758288406279,1.65778174,4534.3,4534.2,0.7075]
[1758288406680,1.65778174,4534.3,4534.0,0.022]
[1758288406881,0.6987,4534.1,4534.0,0.022]
[1758288407085,1.65778174,4534.1,4534.0,0.022]
[1758288407281,1.65778174,4534.1,4534.0,0.91882]
[1758288407487,1.43578174,4534.1,4534.0,1.12632]
[1758288407683,0.95908174,4534.1,4534.0,1.25002]
[1758288407886,0.44859039,4534.1,4534.0,1.25002]
[1758288408390,0.22659039,4534.1,4534.0,1.25002]
[1758288408577,3.2078,4534.4,4534.3,1.10429]
[1758288408781,4.16886308,4534.4,4534.3,1.10429]
[1758288408994,4.15276308,4534.4,4534.3,1.10429]
[1758288409186,4.86756308,4534.4,4534.3,0.7075]
[1758288409895,0.73906308,4534.4,4534.3,3.9153]
[1758288410087,0.44924838,4534.4,4534.3,3.9153]
[1758288411191,0.94384838,4534.4,4534.3,3.9153]
[1758288411591,0.94384838,4534.4,4534.3,0.7075]
[1758288411900,0.43314838,4534.4,4534.3,0.7075]
[1758288412090,1.14794838,4534.4,4534.3,0.7075]
[1758288415094,1.14794838,4534.4,4534.3,0.5]
[1758288415488,1.14794838,4534.4,4534.3,0.7075]
[1758288418699,0.9207,4534.4,4534.3,0.7075]
[1758288418897,1.14792748,4534.4,4534.3,0.7075]
[1758288419494,0.92592748,4534.4,4534.3,0.5]
[1758288419797,0.718,4534.2,4534.1,0.5041]
[1758288419995,0.94522748,4534.2,4534.0,0.022]
[1758288420193,1.4571129,4534.1,4534.0,0.5261]
[1758288420407,0.86242748,4534.1,4534.0,0.8142]
[1758288420599,0.64042748,4534.1,4534.0,0.8142]
[1758288420994,0.43492748,4534.1,4534.0,0.8142]
[1758288421401,0.22722748,4534.1,4534.0,0.8142]
[1758288421701,0.222,4534.4,4534.3,0.6978]
[1758288421898,0.65704061,4534.4,4534.3,0.6978]
[1758288422104,0.94707512,4534.4,4534.3,1.09459]
[1758288422602,1.16907512,4534.4,4534.3,1.09459]
[1758288423504,1.47387512,4534.4,4534.3,1.09459]
[1758288423701,1.67937512,4534.4,4534.3,0.6978]
[1758288424502,1.67937512,4534.4,4534.3,1.09459]
[1758288425300,1.45737512,4534.4,4534.3,1.09459]
[1758288425506,1.67937512,4534.4,4534.3,1.09459]
[1758288425801,0.73937512,4534.4,4534.3,1.09459]
[1758288426104,3.2078,4535.6,4535.0,0.39673]
[1758288426105,0.2077,4535.1,4535.0,0.39673]
[1758288426296,0.2077,4535.1,4535.0,0.90173]
[1758288426297,1.45763298,4535.1,4535.0,0.90173]
[1758288426507,0.22747627,4535.1,4535.0,0.90173]
[1758288426804,0.22747627,4535.1,4535.0,1.21093]
[1758288427307,0.5125,4535.7,4535.6,0.39667]
[1758288427605,0.73973997,4535.7,4535.6,0.78527]
[1758288428011,0.73973997,4535.7,4535.6,1.09447]
[1758288428203,0.43493997,4535.7,4535.6,1.09447]
[1758288428500,0.2077,4535.7,4535.6,1.09447]
[1758288430407,0.5125,4535.7,4535.6,1.09447]
[1758288430603,0.718,4535.7,4535.6,0.6978]
[1758288432309,0.718,4535.7,4535.6,0.5041]
[1758288432908,0.4132,4535.7,4535.3,0.3092]
[1758288433208,0.718,4535.4,4535.3,1.0945]
[1758288433709,0.4132,4535.4,4535.3,1.0945]
[1758288433907,0.718,4535.4,4535.3,1.0945]
[1758288435303,0.2077,4535.4,4535.3,1.0945]
[1758288436306,0.222,4535.9,4535.8,0.6978]
[1758288436307,0.4297,4535.9,4535.8,0.6978]
[1758288436503,0.3048,4535.9,4535.8,0.6978]
[1758288436702,0.718,4536.3,4536.2,0.5041]
[1758288436909,0.9445208,4536.3,4536.2,0.5041]
[1758288437104,0.9445208,4536.3,4536.0,0.39664]
[1758288437105,0.3048,4536.2,4535.9,0.3092]
[1758288437305,0.3048,4536.2,4535.6,0.3092]
[1758288437306,0.5125,4535.9,4535.6,0.3092]
[1758288437506,0.5125,4535.9,4535.2,3.2078]
[1758288437507,0.4132,4535.9,4535.3,0.3092]
[1758288437701,0.4132,4535.5,4535.4,0.59159]
[1758288437908,0.718,4535.5,4535.4,0.6978]
[1758288439410,0.2077,4535.8,4535.7,0.6978]
[1758288439611,0.5125,4536.1,4536.0,0.505]
[1758288439806,1.45294266,4536.1,4536.0,0.6978]
[1758288440309,0.94454256,4536.1,4536.0,0.6978]
[1758288441010,0.4132,4535.8,4535.7,0.5041]
[1758288441204,0.718,4535.8,4535.7,0.6978]
[1758288441711,3.9433,4536.2,4536.1,0.6978]
[1758288442108,4.1488,4536.2,4536.1,0.6978]
[1758288443007,3.6385,4536.2,4536.1,0.6978]
[1758288443811,3.9433,4536.2,4536.1,0.6978]
[1758288444614,0.223,4536.2,4536.1,0.6978]
[1758288445112,0.1177,4538.0,4537.3,0.6978]
[1758288445113,3.9258,4537.4,4537.3,0.6978]
[1758288445309,4.15227982,4537.4,4536.8,0.3092]
[1758288445616,0.5125,4537.3,4537.2,0.78514]
[1758288445806,0.718,4537.3,4537.2,0.6978]
[1758288447116,0.718,4537.3,4537.0,0.39656]
[1758288447314,0.3048,4537.2,4537.1,0.39655]
[1758288447612,0.718,4537.2,4537.1,0.5041]
[1758288449209,0.718,4537.2,4537.1,0.6978]
[1758288450711,0.7119,4537.3,4537.2,1.13254]
[1758288450907,0.397,4536.9,4536.6,0.71669]
[1758288451107,0.397,4536.7,4536.6,0.39659]
[1758288451307,0.397,4536.7,4536.6,0.81249]
[1758288451712,0.7119,4537.3,4537.2,0.736]
[1758288451910,0.62,4537.3,4537.2,0.736]
[1758288452215,0.9349,4537.3,4537.2,0.736]
[1758288452415,0.1944,4537.3,4537.2,0.81243]
[1758288452612,0.4174,4537.3,4537.2,1.13253]
[1758288453115,0.7323,4537.3,4537.2,1.13253]
[1758288453713,0.4174,4537.3,4537.2,1.13253]
[1758288453912,0.7323,4537.3,4537.2,1.13253]
[1758288454112,0.9349,4537.3,4537.2,1.13253]
[1758288455016,0.9349,4537.3,4537.2,0.736]
[1758288455517,1.16141678,4537.3,4537.1,0.39654]
[1758288455812,0.7119,4537.2,4537.1,0.92104]
[1758288456017,0.7119,4537.2,4537.0,0.022]
[1758288456018,0.93842372,4537.2,4537.0,0.022]
[1758288456215,0.93842372,4537.1,4537.0,0.022]
[1758288456613,0.93842372,4537.1,4537.0,0.5465]
[1758288457013,0.93842372,4537.1,4537.0,0.022]
[1758288457208,0.1265,4537.0,4536.8,0.39657]
[1758288457413,0.7119,4536.9,4536.8,0.92107]
[1758288458218,0.93851586,4536.9,4536.8,0.92107]
[1758288458718,0.93851586,4536.9,4536.8,1.13257]
[1758288458719,0.73591586,4536.9,4536.8,1.13257]
[1758288458906,0.22661586,4536.9,4536.8,1.13257]
[1758288459108,0.223,4537.1,4537.0,0.51566]
[1758288459313,0.9349,4537.1,4537.0,0.2044]
[1758288459520,0.8384,4537.0,4536.9,0.39657]
[1758288459718,0.75011577,4537.0,4536.3,3.2078]
[1758288460016,0.62361577,4536.9,4536.8,0.5245]
[1758288460216,0.397,4536.1,4536.0,0.5245]
[1758288460414,0.62361577,4536.1,4536.0,1.25174]
[1758288460712,0.24398928,4536.1,4536.0,1.25174]
[1758288460916,0.1944,4536.8,4536.7,1.13258]
[1758288461115,0.95585702,4536.8,4536.7,0.736]
[1758288461314,0.7119,4535.9,4535.8,0.5465]
[1758288461517,1.17985702,4535.9,4535.8,0.758]
[1758288461714,0.43835702,4535.9,4535.8,0.758]
[1758288461916,0.3149,4536.7,4536.5,0.1191]
[1758288462221,0.224,4536.7,4536.6,0.736]
[1758288462814,3.4022,4537.2,4537.0,0.51565]
[1758288463011,3.9197,4537.2,4537.1,0.736]
[1758288463214,4.36838902,4537.2,4537.1,0.736]
[1758288464421,4.14438902,4537.2,4537.1,0.736]
[1758288464718,4.36838902,4537.2,4537.1,0.736]
[1758288465120,4.14438902,4537.2,4537.1,0.736]
[1758288465320,4.36838902,4537.2,4537.1,0.736]
[1758288465821,1.16058902,4537.2,4537.1,0.736]
[1758288466625,0.9359,4537.2,4537.1,0.736]
[1758288466827,0.7119,4537.6,4537.5,0.736]
[1758288467126,1.67504627,4537.6,4537.5,0.736]
[1758288467625,1.16067344,4537.6,4537.5,0.736]
[1758288467920,0.1265,4537.5,4537.3,0.3201]
[1758288468126,0.93667344,4537.4,4537.3,0.5245]
[1758288468620,0.93667344,4537.4,4537.3,0.736]
[1758288468927,1.16067344,4537.4,4537.3,0.736]
[1758288469127,0.22477344,4537.4,4537.3,0.736]
[1758288469322,0.41917344,4537.4,4537.3,0.736]
[1758288469523,0.7119,4536.9,4536.8,0.39657]
[1758288469723,1.16082212,4536.9,4536.8,0.39657]
[1758288469918,0.93682212,4536.9,4536.8,0.92107]
[1758288470223,1.16087771,4536.9,4536.8,1.13257]
[1758288470431,0.397,4536.9,4536.8,4.34037]
[1758288470822,0.1944,4536.9,4536.8,4.34037]
[1758288471520,0.224,4537.0,4536.8,4.34037]
[1758288471722,0.7119,4537.4,4537.3,1.13253]
[1758288471921,1.35324144,4537.4,4537.3,1.13253]
[1758288472423,0.84604247,4537.4,4537.3,1.13253]
[1758288472629,0.22504247,4537.4,4537.3,1.13253]
[1758288473625,0.9359,4537.9,4537.8,1.13249]
[1758288473823,1.6683993,4537.9,4537.1,0.3201]
[1758288474129,0.7119,4537.7,4537.6,0.3965]
[1758288474425,1.4443993,4537.7,4537.6,0.6009]
[1758288474628,1.4443993,4537.7,4537.6,0.921]
[1758288474929,1.6683993,4537.7,4537.6,0.921]
[1758288476026,1.4443993,4537.7,4537.6,0.921]
[1758288476222,1.6683993,4537.7,4537.6,0.921]
[1758288477326,1.6683993,4537.7,4537.0,0.3201]
[1758288477522,0.7119,4537.1,4537.0,0.39656]
[1758288477729,1.16101352,4537.1,4537.0,0.92106]
[1758288478131,1.16101352,4537.1,4537.0,0.39656]
[1758288478630,1.16101352,4537.1,4537.0,0.59336]
[1758288479127,0.5363,4537.0,4536.9,0.39657]
[1758288479324,1.05971352,4537.0,4536.9,0.39657]
[1758288479528,0.2983,4536.9,4536.6,3.2298]
[1758288479727,0.76141352,4537.0,4536.6,0.022]
[1758288479728,3.9177,4536.7,4536.6,0.022]
[1758288479922,4.87452271,4536.7,4536.6,0.022]
[1758288480122,0.7099,4536.3,4536.2,0.39663]
[1758288480319,0.5046,4535.7,4535.6,0.90758]
[1758288480524,0.63671352,4535.7,4535.1,0.3141]
[1758288480730,0.7099,4534.6,4534.5,0.5109]
[1758288480933,1.44322479,4534.6,4534.5,0.1968]
[1758288481326,0.93521239,4534.6,4534.5,0.5109]
[1758288481522,0.93521239,4534.6,4534.5,0.1968]
[1758288481831,0.7099,4534.4,4534.3,3.80139]
[1758288482029,0.7099,4534.4,4534.3,4.11549]
[1758288484431,1.0596,4535.0,4534.9,0.022]
[1758288485526,1.0596,4535.0,4533.8,0.39683]
[1758288485527,5.71150554,4535.0,4533.8,0.39683]
[1758288485732,0.7099,4533.9,4533.8,0.59363]
[1758288485927,0.7099,4533.9,4533.8,0.90773]
[1758288486228,0.2983,4533.8,4533.3,3.5219]
[1758288486424,0.7099,4533.4,4533.3,0.1968]
[1758288486627,0.7099,4533.4,4531.9,0.99251]
[1758288486628,0.7099,4532.3,4532.2,0.90787]
[1758288486925,0.9349,4532.3,4532.2,1.10407]